fUSD/lending_fUSD_20260410
["ID","MTS","AMOUNT","RATE_DAILY","PERIOD"]
[420201427,1775771436465,-150.0,0.00014247,2]
[420201428,1775771436481,-505.0,0.00014295,3]
[420201429,1775771436493,-6566.27793731,0.00014323,2]
[420201430,1775771436502,-8167.51838774,0.00014323,2]
[420201431,1775771436529,-166.66,0.00014384,2]
[420201432,1775771436556,-227.07,0.00014391,2]
[420201433,1775771436566,-2500.0,0.0001441,2]
[420201434,1775771436588,-2500.0,0.0001441,2]
[420201435,1775771436598,-2500.0,0.0001441,2]
[420201436,1775771436612,-2500.0,0.0001441,2]
[420201437,1775771436622,-2500.0,0.0001441,2]
[420201438,1775771436640,-300.0,0.0001441,2]
[420201439,1775771436653,-300.0,0.0001441,2]
[420201440,1775771436667,-300.0,0.0001441,2]
[420201441,1775771436681,-300.0,0.0001441,2]
[420201442,1775771436696,-300.0,0.0001441,2]
[420201443,1775771436724,-500.0,0.0001441,2]
[420201444,1775771436751,-500.0,0.0001441,2]
[420201445,1775771436779,-500.0,0.0001441,2]
[420201446,1775771436809,-187.24008449,0.0001441,2]
[420201447,1775771436873,-312.75991551,0.0001441,2]
[420201448,1775771436888,-195.0,0.0001441,2]
[420201449,1775771436949,-600.0,0.0001441,2]
[420201450,1775771436959,-500.0,0.0001441,2]
[420201451,1775771436981,-961.53138049,0.00014452,2]
[420201452,1775771436991,-500.0,0.00014453,2]
[420201453,1775771437017,-500.0,0.00014466,2]
[420201454,1775771437033,-417.0,0.0001449,2]
[420201455,1775771437043,-6566.27793731,0.00014549,2]
[420201456,1775771437058,-8167.51838774,0.00014549,2]
[420201457,1775771437076,-1572.0,0.00014595,2]
[420201458,1775771437089,-1000.0,0.00014613,2]
[420201459,1775771437152,-2000.0,0.00014633,2]
[420201460,1775771437166,-500.0,0.00014712,2]
[420201461,1775771437209,-500.0,0.00014712,2]
[420201462,1775771437289,-500.0,0.00014712,2]
[420201463,1775771437307,-500.0,0.00014712,2]
[420201464,1775771437319,-500.0,0.00014712,2]
[420201465,1775771437340,-500.0,0.00014712,2]
[420201466,1775771437350,-500.0,0.00014712,2]
[420201467,1775771437398,-500.0,0.00014712,2]
[420201468,1775771437434,-500.0,0.00014712,2]
[420201469,1775771437460,-500.0,0.00014712,2]
[420201470,1775771437471,-500.0,0.00014712,2]
[420201471,1775771437481,-500.0,0.00014712,2]
[420201472,1775771437492,-500.0,0.00014712,2]
[420201473,1775771437512,-500.0,0.00014712,2]
[420201474,1775771437522,-500.0,0.00014712,2]
[420201475,1775771437535,-500.0,0.00014712,2]
[420201476,1775771437546,-1266.21,0.00014712,2]
[420201477,1775771437561,-500.0,0.00014712,2]
[420201478,1775771437582,-500.0,0.00014712,2]
[420201479,1775771437597,-500.0,0.00014712,2]
[420201480,1775771437624,-500.0,0.00014712,2]
[420201481,1775771437654,-554.53,0.00014712,2]
[420201482,1775771437670,-500.0,0.00014712,2]
[420201483,1775771437681,-500.0,0.00014712,2]
[420201484,1775771437703,-729.91,0.00014712,2]
[420201485,1775771437713,-598.29,0.00014712,2]
[420201486,1775771437738,-500.0,0.00014712,2]
[420201487,1775771437754,-500.0,0.00014727,2]
[420201488,1775771437767,-961.53138049,0.00014742,2]
[420201489,1775771437777,-6566.27793731,0.00014774,2]
[420201490,1775771437799,-1115.8629925,0.00014774,2]
[420201498,1775771439165,-1285.15448329,0.00014774,2]
[420201499,1775771439177,-923.55477424,0.00014774,2]
[420201500,1775771439192,-251.76529873,0.00014774,2]
[420201501,1775771439204,-4591.18083898,0.00014774,2]
[420201502,1775771439214,-1280.88388878,0.00014804,2]
[420201503,1775771439227,-601.3376128,0.00014804,2]
[420201504,1775771439238,-200.0,0.00014804,2]
[420201505,1775771439248,-174.61919141,0.00014804,2]
[420201506,1775771439270,-500.0,0.00014812,2]
[420201507,1775771439281,-500.0,0.00014812,2]
[420201508,1775771439309,-500.0,0.00014812,2]
[420201509,1775771439335,-500.0,0.00014812,2]
[420201510,1775771439348,-500.0,0.00014812,2]
[420201511,1775771439364,-500.0,0.00014812,2]
[420201512,1775771439390,-500.0,0.00014812,2]
[420201513,1775771439400,-500.0,0.00014812,2]
[420201514,1775771439423,-500.0,0.00014812,2]
[420201515,1775771439479,-500.0,0.00014812,2]
[420201516,1775771439507,-500.0,0.00014812,2]
[420201517,1775771439517,-500.0,0.00014812,2]
[420201518,1775771439538,-500.0,0.00014812,2]
[420201519,1775771439547,-500.0,0.00014812,2]
[420201520,1775771439570,-1266.21,0.00014812,2]
[420201521,1775771439580,-500.0,0.00014812,2]
[420201522,1775771439606,-500.0,0.00014812,2]
[420201523,1775771439616,-500.0,0.00014812,2]
[420201524,1775771439643,-554.53,0.00014812,2]
[420201525,1775771439663,-500.0,0.00014812,2]
[420201526,1775771439673,-500.0,0.00014812,2]
[420201527,1775771439687,-729.91,0.00014812,2]
[420201528,1775771439697,-598.29,0.00014812,2]
[420201529,1775771439712,-577.45498934,0.00014812,2]
[420201530,1775771439723,-150.0,0.00014942,2]
[420201531,1775771439733,-216.18205097,0.00014984,2]
[420201532,1775771439743,-211.69981117,0.00014984,2]
[420201533,1775771439753,-168.0,0.00014994,2]
[420201534,1775771439763,-6566.27793731,0.00014999,2]
[420201535,1775771439773,-8167.51838774,0.00014999,2]
[420201536,1775771439782,-255.0,0.00015016,2]
[420201537,1775771439792,-961.53138049,0.00015031,2]
[420201538,1775771439801,-168.0,0.00015066,2]
[420201539,1775771439810,-168.0,0.00015069,2]
[420201540,1775771439819,-168.0,0.00015083,2]
[420201541,1775771439828,-6566.27793731,0.00015224,2]
[420201542,1775771439838,-8167.51838774,0.00015224,2]
[420201543,1775771439847,-168.0,0.00015293,2]
[420201544,1775771439856,-175.2403,0.000153,2]
[420201545,1775771439865,-5000.0,0.000153,2]
[420201546,1775771439876,-961.53138049,0.00015321,2]
[420201547,1775771439886,-270.7801228,0.0001535,2]
[420201548,1775771439894,-181.08010149,0.00015352,2]
[420201549,1775771439903,-160.0,0.00015386,2]
[420201550,1775771439912,-1286.981405,0.00015386,2]
[420201551,1775771439924,-2413.96281,0.00015386,2]
[420201552,1775771439934,-209296.8453,0.000154,2]
[420201553,1775771439943,-6566.27793731,0.0001545,2]
[420201554,1775771439952,-150.0,0.00015451,2]
[420201555,1775771439969,-150.0,0.00015451,2]
[420201556,1775771439980,-150.0,0.00015451,2]
[420201557,1775771439995,-288.7814285,0.00015451,2]
[420201558,1775771440005,-500.0,0.00015451,2]
[420201559,1775771440020,-500.19550744,0.00015451,2]
[420201560,1775771440040,-250.0,0.00015452,2]
[420201561,1775771440071,-1456.43,0.00015471,2]
[420201562,1775771440091,-1702.0,0.00015473,2]
[420201564,1775771440100,-505.0,0.00015489,4]
[420201565,1775771440118,-500.0,0.00015496,2]
[420201566,1775771440129,-465.62339285,0.00015496,2]
[420201567,1775771440142,-478.59477284,0.00015496,2]
[420201568,1775771440155,-500.0,0.00015496,2]
[420201569,1775771440167,-503.92739535,0.00015496,2]
[420201570,1775771440247,-10888.7159392,0.00015497,2]
[420201572,1775771440272,-1092.220914,0.00015497,2]
[420201573,1775771440302,-85645.9933011,0.00015497,2]
[420201574,1775771440312,-9554.309051,0.00015497,2]
[420201576,1775771440322,-33204.3947601,0.00015497,2]
[420201578,1775771440358,-57654.7988998,0.00015497,2]
[420201580,1775771440369,-500.0,0.00015499,2]
[420201582,1775771440389,-500.0,0.00015499,2]
[420201584,1775771440401,-500.0,0.00015499,2]
[420201587,1775771440431,-500.0,0.00015499,2]
[420201590,1775771440452,-500.0,0.00015499,2]
[420201591,1775771440486,-500.0,0.00015499,2]
[420201593,1775771440510,-500.0,0.00015499,2]
[420201594,1775771440520,-500.0,0.00015499,2]
[420201596,1775771440545,-500.0,0.00015499,2]
[420201597,1775771440555,-500.0,0.00015499,2]
[420201599,1775771440571,-500.0,0.00015499,2]
[420201601,1775771440580,-500.0,0.00015499,2]
[420201602,1775771440590,-500.0,0.00015499,2]
[420201604,1775771440604,-500.0,0.00015499,2]
[420201606,1775771440614,-180.63471025,0.00015499,2]
[420201607,1775771440630,-500.0,0.00015499,2]
[420201609,1775771440640,-500.0,0.00015499,2]
[420201611,1775771440656,-500.0,0.00015499,2]
[420201612,1775771440666,-500.0,0.00015499,2]
[420201614,1775771440675,-500.0,0.00015499,2]
[420201615,1775771440687,-500.0,0.00015499,2]
[420201617,1775771440697,-500.0,0.00015499,2]
[420201619,1775771440709,-500.0,0.00015499,2]
[420201621,1775771440730,-500.0,0.00015499,2]
[420201622,1775771440739,-500.0,0.00015499,2]
[420201623,1775771440761,-500.0,0.00015499,2]
[420201624,1775771440787,-500.0,0.00015499,2]
[420201625,1775771440798,-500.0,0.00015499,2]
[420201626,1775771440823,-500.0,0.00015499,2]
[420201627,1775771440839,-500.0,0.00015499,2]
[420201628,1775771440849,-500.0,0.00015499,2]
[420201629,1775771440858,-500.0,0.00015499,2]
[420201630,1775771440871,-500.0,0.00015499,2]
[420201631,1775771440886,-500.0,0.00015499,2]
[420201632,1775771440895,-500.0,0.00015499,2]
[420201633,1775771440908,-500.0,0.00015499,2]
[420201634,1775771440918,-500.0,0.00015499,2]
[420201635,1775771440935,-500.0,0.00015499,2]
[420201636,1775771440964,-500.0,0.00015499,2]
[420201637,1775771440994,-1266.21,0.00015499,2]
[420201638,1775771441038,-1266.21,0.00015499,2]
[420201639,1775771441073,-1266.21,0.00015499,2]
[420201640,1775771441089,-500.0,0.00015499,2]
[420201641,1775771441107,-437.55127796,0.00015499,2]
[420201642,1775771441123,-500.0,0.00015499,2]
[420201643,1775771441142,-500.0,0.00015499,2]
[420201644,1775771441177,-500.0,0.00015499,2]
[420201645,1775771441216,-554.53,0.00015499,2]
[420201646,1775771441240,-554.53,0.00015499,2]
[420201648,1775771441250,-554.53,0.00015499,2]
[420201650,1775771441264,-500.0,0.00015499,2]
[420201652,1775771441286,-500.0,0.00015499,2]
[420201653,1775771441296,-500.0,0.00015499,2]
[420201655,1775771441305,-500.0,0.00015499,2]
[420201656,1775771441326,-729.91,0.00015499,2]
[420201657,1775771441336,-729.91,0.00015499,2]
[420201658,1775771441355,-729.91,0.00015499,2]
[420201659,1775771441366,-598.29,0.00015499,2]
[420201660,1775771441386,-598.29,0.00015499,2]
[420201661,1775771441396,-598.29,0.00015499,2]
[420201662,1775771441414,-1000.0,0.000155,2]
[420201663,1775771441424,-4000.0,0.00015507,2]
[420201664,1775771441446,-168.0,0.00015508,2]
[420201665,1775771441457,-168.0,0.00015541,2]
[420201666,1775771441467,-160.0,0.00015552,2]
[420201667,1775771441477,-346.788805,0.00015552,2]
[420201668,1775771441491,-533.57761,0.00015552,2]
[420201669,1775771441508,-1600.0,0.0001556,2]
[420201670,1775771441518,-302.0,0.00015572,2]
[420201671,1775771441530,-207.94144159,0.00015578,2]
[420201672,1775771441547,-1494.05855841,0.00015578,2]
[420201673,1775771441556,-1138.28964567,0.00015581,2]
[420201674,1775771441567,-500.0,0.00015599,2]
[420201675,1775771441582,-69171.65179593,0.000156,2]
[420201676,1775771441595,-1165.45033526,0.000156,2]
[420201677,1775771441607,-1741.48362425,0.000156,2]
[420201678,1775771441633,-479.436717,0.000156,2]
[420201679,1775771441652,-3521.18509526,0.000156,2]
[420201680,1775771441959,-186.97447771,0.00014548,2]
[420201681,1775771441968,-1746.50424971,0.0001545,2]
[420201682,1775771441997,-6421.01413803,0.0001545,2]
[420201683,1775771442017,-157.14760536,0.00015496,2]
[420201684,1775771442026,-18118.5841302,0.000156,2]
[420201685,1775771442044,-1047.0,0.00015603,2]
[420201686,1775771442054,-1347.0,0.00015603,2]
[420201687,1775771442070,-622.0,0.00015603,2]
[420201688,1775771442079,-3524.0,0.00015603,2]
[420201689,1775771442089,-1264.0,0.00015603,2]
[420201690,1775771442108,-3773.0,0.00015603,2]
[420201691,1775771442118,-415.0,0.00015603,2]
[420201692,1775771442128,-2514.058,0.00015603,2]
[420201693,1775771442144,-961.53138049,0.0001561,2]
[420201694,1775771442153,-250.0,0.0001565,2]
[420201695,1775771442167,-6566.27793731,0.00015675,2]
[420201696,1775771442183,-10000.0,0.00015682,2]
[420201697,1775771442193,-25000.0,0.00015691,3]
[420201698,1775771442203,-46864.9820388,0.000157,2]
[420201699,1775771442215,-25000.0,0.000157,3]
[420201700,1775771442227,-25000.0,0.00015709,3]
[420201701,1775771442237,-5408.24742112,0.00015709,3]
[420201702,1775771442247,-551.05,0.00015753,2]
[420201703,1775771442261,-1702.0,0.00015766,2]
[420201704,1775771442295,-197.89720748,0.0001577,2]
[420201705,1775771442311,-1500.0,0.00015778,2]
[420201706,1775771442327,-1500.0,0.00015778,2]
[420201707,1775771442375,-1500.0,0.00015778,2]
[420201708,1775771442396,-500.0,0.00015778,2]
[420201709,1775771442416,-1560.24656607,0.000158,2]
[420201710,1775771442436,-39509.87168047,0.0001584,2]
[420201711,1775771442446,-151.0,0.0001584,2]
[420201712,1775771442463,-151.0,0.0001584,2]
[420201713,1775771442472,-151.0,0.0001584,2]
[420201714,1775771442484,-151.0,0.0001584,2]
[420201715,1775771442494,-500.0,0.0001587,2]
[420201716,1775771442505,-200.0,0.0001587,2]
[420201717,1775771442516,-2000.0,0.0001589,2]
[420201718,1775771442526,-4000.0,0.00015895,2]
[420201719,1775771442549,-10000.0,0.00015899,2]
[420201720,1775771442558,-155.91789454,0.00015899,2]
[420201721,1775771442584,-500.0,0.00015899,2]
[420201722,1775771442593,-500.0,0.00015899,2]
[420201723,1775771442611,-500.0,0.00015899,2]
[420201724,1775771442621,-500.0,0.00015899,2]
[420201725,1775771442647,-500.0,0.00015899,2]
[420201726,1775771442657,-500.0,0.00015899,2]
[420201727,1775771442680,-500.0,0.00015899,2]
[420201728,1775771442704,-500.0,0.00015899,2]
[420201729,1775771442714,-500.0,0.00015899,2]
[420201730,1775771442742,-500.0,0.00015899,2]
[420201731,1775771442771,-183.58723642,0.00015899,2]
[420201732,1775771442794,-500.0,0.00015899,2]
[420201733,1775771442804,-1266.21,0.00015899,2]
[420201734,1775771442814,-500.0,0.00015899,2]
[420201735,1775771442839,-554.53,0.00015899,2]
[420201736,1775771442855,-500.0,0.00015899,2]
[420201737,1775771442867,-729.91,0.00015899,2]
[420201738,1775771442890,-598.29,0.00015899,2]
[420201741,1775771442913,-155.91789452,0.00015899,2]
[420201742,1775771442935,-155.91789452,0.00015899,2]
[420201743,1775771442962,-155.91789452,0.000159,2]
[420201744,1775771442976,-187.78006525,0.000159,2]
[420201745,1775771442994,-155.91789452,0.000159,2]
[420201746,1775771443016,-155.91789452,0.000159,2]
[420201747,1775771443026,-155.91789452,0.000159,2]
[420201748,1775771443038,-961.53138049,0.000159,2]
[420201749,1775771443052,-6566.27793731,0.000159,2]
[420201751,1775771443078,-1320.91646737,0.000159,2]
[420201753,1775771443088,-12386.55693564,0.000159,2]
[420201755,1775771443108,-180.50323414,0.000159,2]
[420201756,1775771443118,-4255.62965392,0.000159,2]
[420201758,1775771443139,-2000.0,0.000159,2]
[420201760,1775771443158,-168.0,0.00015908,2]
[420201761,1775771443167,-5800.0,0.00015949,2]
[420201764,1775771443183,-151.25,0.00015952,2]
[420201765,1775771443194,-5800.0,0.00015958,2]
[420201768,1775771443204,-5000.0,0.0001596,2]
[420201769,1775771443219,-151.0,0.0001596,2]
[420201770,1775771443229,-151.0,0.0001596,2]
[420201771,1775771443238,-151.0,0.0001596,2]
[420201773,1775771443263,-262.864022,0.0001596,2]
[420201776,1775771443276,-151.0,0.0001596,2]
[420201778,1775771443287,-151.0,0.0001596,2]
[420201779,1775771443317,-151.0,0.0001596,2]
[420201780,1775771443326,-151.0,0.0001596,2]
[420201782,1775771443351,-151.0,0.0001596,2]
[420201783,1775771443361,-151.0,0.0001596,2]
[420201784,1775771443390,-5800.0,0.00015966,2]
[420201785,1775771443420,-500.0,0.00015973,2]
[420201786,1775771443448,-500.0,0.00015973,2]
[420201787,1775771443457,-500.0,0.00015973,2]
[420201788,1775771443478,-404.0297771,0.00015973,2]
[420201789,1775771443488,-162.00543377,0.00015973,2]
[420201790,1775771443505,-500.0,0.00015973,2]
[420201791,1775771443515,-500.0,0.00015973,2]
[420201792,1775771443532,-500.0,0.00015973,2]
[420201793,1775771443542,-164.89444658,0.00015973,2]
[420201794,1775771443561,-160.4382481,0.00015973,2]
[420201795,1775771443570,-500.12097524,0.00015973,2]
[420201796,1775771443590,-500.0,0.00015973,2]
[420201797,1775771443599,-599.44323275,0.00015973,2]
[420201798,1775771443622,-500.64706813,0.00015973,2]
[420201799,1775771443636,-519.33213279,0.00015973,2]
[420201800,1775771443647,-500.0,0.00015973,2]
[420201801,1775771443734,-500.0,0.00015973,2]
[420201802,1775771443744,-500.0,0.00015973,2]
[420201803,1775771443762,-500.0,0.00015973,2]
[420201804,1775771443778,-500.0,0.00015973,2]
[420201805,1775771443800,-500.0,0.00015973,2]
[420201806,1775771443816,-500.0,0.00015973,2]
[420201807,1775771443827,-500.0,0.00015973,2]
[420201808,1775771443837,-500.19393291,0.00015973,2]
[420201809,1775771443856,-500.0,0.00015973,2]
[420201810,1775771443866,-500.0,0.00015973,2]
[420201811,1775771443884,-500.19715566,0.00015973,2]
[420201812,1775771443894,-500.0,0.00015973,2]
[420201813,1775771443908,-211.19666267,0.00015973,2]
[420201814,1775771443921,-500.0,0.00015973,2]
[420201816,1775771443939,-500.0,0.00015973,2]
[420201817,1775771443949,-500.0,0.00015973,2]
[420201819,1775771443959,-500.22461821,0.00015973,2]
[420201821,1775771443977,-516.04465548,0.00015973,2]
[420201822,1775771443987,-160.84170605,0.00015973,2]
[420201823,1775771443999,-500.0,0.00015973,2]
[420201824,1775771444022,-500.0,0.00015973,2]
[420201825,1775771444050,-312.924467,0.00015973,2]
[420201826,1775771444060,-211.10556149,0.00015973,2]
[420201827,1775771444081,-500.0,0.00015973,2]
[420201828,1775771444092,-569.20510167,0.00015973,2]
[420201829,1775771444115,-202.72725828,0.00015973,2]
[420201830,1775771444128,-500.0,0.00015973,2]
[420201831,1775771444151,-385.95589569,0.00015973,2]
[420201832,1775771444180,-163.70042178,0.00015973,2]
[420201833,1775771444209,-500.0,0.00015973,2]
[420201834,1775771444219,-339.99732691,0.00015973,2]
[420201835,1775771444232,-500.08454693,0.00015973,2]
[420201836,1775771444247,-500.0,0.00015973,2]
[420201837,1775771444261,-500.0,0.00015973,2]
[420201838,1775771444271,-607.4248832,0.00015973,2]
[420201839,1775771444280,-500.0,0.00015973,2]
[420201840,1775771444294,-500.0,0.00015973,2]
[420201841,1775771444304,-500.0,0.00015973,2]
[420201842,1775771444315,-500.67408865,0.00015973,2]
[420201843,1775771444325,-162.83153135,0.00015973,2]
[420201844,1775771444335,-500.0,0.00015973,2]
[420201845,1775771444352,-500.0,0.00015973,2]
[420201846,1775771444363,-561.47451972,0.00015973,2]
[420201847,1775771444373,-500.0,0.00015973,2]
[420201848,1775771444387,-500.0,0.00015973,2]
[420201849,1775771444401,-168.7983116,0.00015973,2]
[420201850,1775771444429,-500.0,0.00015973,2]
[420201851,1775771444459,-215.387441,0.00015973,2]
[420201852,1775771444492,-151.0,0.00015973,2]
[420201853,1775771444516,-215.387441,0.00015973,2]
[420201854,1775771444526,-151.0,0.00015973,2]
[420201855,1775771444546,-215.387441,0.00015973,2]
[420201856,1775771444556,-215.387441,0.00015973,2]
[420201857,1775771444572,-213.155738,0.00015973,2]
[420201858,1775771444590,-151.0,0.00015973,2]
[420201859,1775771444604,-213.155738,0.00015973,2]
[420201860,1775771444628,-151.0,0.00015973,2]
[420201861,1775771444641,-151.0,0.00015973,2]
[420201862,1775771444669,-151.0,0.00015973,2]
[420201863,1775771444684,-151.0,0.00015973,2]
[420201864,1775771444717,-213.155738,0.00015973,2]
[420201865,1775771444734,-151.0,0.00015973,2]
[420201866,1775771444752,-213.155738,0.00015973,2]
[420201867,1775771444779,-233.190909,0.00015973,2]
[420201868,1775771444806,-151.0,0.00015973,2]
[420201869,1775771444839,-151.0,0.00015973,2]
[420201870,1775771444872,-151.0,0.00015973,2]
[420201871,1775771444899,-5800.0,0.00015975,2]
[420201872,1775771444912,-5800.0,0.00015983,2]
[420201873,1775771444930,-5800.0,0.00015987,2]
[420201874,1775771444942,-168.0,0.00015987,2]
[420201875,1775771444952,-201.56588112,0.00015989,2]
[420201876,1775771444984,-427.87794693,0.0001599,4]
[420201877,1775771444996,-201.56588112,0.0001599,2]
[420201878,1775771445017,-201.56588112,0.0001599,2]
[420201879,1775771445028,-5800.0,0.00015992,2]
[420201880,1775771445051,-5800.0,0.00015995,2]
[420201881,1775771445081,-168.0,0.00015997,2]
[420201882,1775771445112,-331.94307882,0.00015998,2]
[420201883,1775771445136,-666.0,0.00015998,2]
[420201884,1775771445146,-666.0,0.00015999,2]
[420201885,1775771445161,-666.0,0.00015999,2]
[420201886,1775771445187,-500.0,0.00015999,2]
[420201887,1775771445197,-500.0,0.00015999,2]
[420201888,1775771445210,-500.0,0.00015999,2]
[420201889,1775771445220,-500.0,0.00015999,2]
[420201890,1775771445230,-500.0,0.00015999,2]
[420201891,1775771445251,-500.0,0.00015999,2]
[420201892,1775771445261,-214.03,0.00015999,2]
[420201893,1775771445278,-500.0,0.00015999,2]
[420201894,1775771445289,-500.0,0.00015999,2]
[420201895,1775771445300,-500.0,0.00015999,2]
[420201896,1775771445317,-500.0,0.00015999,2]
[420201897,1775771445338,-500.0,0.00015999,2]
[420201898,1775771445349,-500.0,0.00015999,2]
[420201899,1775771445373,-500.0,0.00015999,2]
[420201900,1775771445383,-500.0,0.00015999,2]
[420201901,1775771445396,-500.0,0.00015999,2]
[420201902,1775771445409,-500.0,0.00015999,2]
[420201903,1775771445421,-500.0,0.00015999,2]
[420201904,1775771445431,-500.0,0.00015999,2]
[420201905,1775771445441,-500.0,0.00015999,2]
[420201906,1775771445454,-240.03469433,0.00015999,2]
[420201907,1775771445467,-500.0,0.00015999,2]
[420201908,1775771445486,-500.0,0.00015999,2]
[420201909,1775771445497,-500.0,0.00015999,2]
[420201910,1775771445510,-500.0,0.00015999,2]
[420201911,1775771445525,-500.0,0.00015999,2]
[420201912,1775771445553,-500.0,0.00015999,2]
[420201913,1775771445564,-500.0,0.00015999,2]
[420201914,1775771445589,-423.46520535,0.00015999,2]
[420201915,1775771445606,-500.0,0.00015999,2]
[420201916,1775771445617,-500.0,0.00015999,2]
[420201917,1775771445632,-500.0,0.00015999,2]
[420201918,1775771445643,-500.0,0.00015999,2]
[420201919,1775771445654,-500.0,0.00015999,2]
[420201920,1775771445675,-271.65524399,0.00015999,2]
[420201921,1775771445685,-500.0,0.00015999,2]
[420201922,1775771445700,-500.0,0.00015999,2]
[420201923,1775771445710,-500.0,0.00015999,2]
[420201924,1775771445721,-500.0,0.00015999,2]
[420201925,1775771445734,-500.0,0.00015999,2]
[420201926,1775771445752,-500.0,0.00015999,2]
[420201927,1775771445763,-500.0,0.00015999,2]
[420201928,1775771446335,-500.0,0.00015999,2]
[420201929,1775771446347,-500.0,0.00015999,2]
[420201930,1775771446362,-500.0,0.00015999,2]
[420201931,1775771446375,-500.0,0.00015999,2]
[420201932,1775771446385,-500.0,0.00015999,2]
[420201933,1775771446397,-500.0,0.00015999,2]
[420201934,1775771446422,-500.0,0.00015999,2]
[420201935,1775771446447,-500.0,0.00015999,2]
[420201936,1775771446460,-500.0,0.00015999,2]
[420201937,1775771446524,-500.0,0.00015999,2]
[420201938,1775771446545,-500.0,0.00015999,2]
[420201939,1775771446584,-500.0,0.00015999,2]
[420201940,1775771446608,-500.0,0.00015999,2]
[420201941,1775771446618,-150.0,0.00015999,2]
[420201942,1775771446644,-1266.21,0.00015999,2]
[420201944,1775771446669,-1266.21,0.00015999,2]
[420201946,1775771446698,-1266.21,0.00015999,2]
[420201948,1775771446739,-1266.21,0.00015999,2]
[420201950,1775771446771,-1266.21,0.00015999,2]
[420201952,1775771446792,-1266.21,0.00015999,2]
[420201954,1775771446802,-1266.21,0.00015999,2]
[420201956,1775771446819,-1266.21,0.00015999,2]
[420201958,1775771446829,-1266.21,0.00015999,2]
[420201960,1775771446839,-1266.21,0.00015999,2]
[420201962,1775771446849,-1266.21,0.00015999,2]
[420201965,1775771446865,-1266.21,0.00015999,2]
[420201967,1775771446883,-1266.21,0.00015999,2]
[420201969,1775771446893,-1266.21,0.00015999,2]
[420201971,1775771446912,-1266.21,0.00015999,2]
[420201973,1775771446922,-1266.21,0.00015999,2]
[420201975,1775771446932,-1266.21,0.00015999,2]
[420201977,1775771446946,-1266.24849701,0.00015999,2]
[420201979,1775771446961,-500.0,0.00015999,2]
[420201981,1775771446979,-500.0,0.00015999,2]
[420201983,1775771446988,-150.0,0.00015999,2]
[420201985,1775771447011,-554.53,0.00015999,2]
[420201987,1775771447021,-554.53,0.00015999,2]
[420201989,1775771447042,-554.53,0.00015999,2]
[420201991,1775771447053,-554.53,0.00015999,2]
[420201993,1775771447077,-554.53,0.00015999,2]
[420201995,1775771447092,-554.53,0.00015999,2]
[420201996,1775771447103,-554.53,0.00015999,2]
[420201998,1775771447112,-554.53,0.00015999,2]
[420202001,1775771447127,-554.53,0.00015999,2]
[420202003,1775771447139,-554.53,0.00015999,2]
[420202005,1775771447159,-554.53,0.00015999,2]
[420202007,1775771447169,-554.53,0.00015999,2]
[420202009,1775771447191,-554.53,0.00015999,2]
[420202011,1775771447200,-554.53,0.00015999,2]
[420202013,1775771447219,-554.53,0.00015999,2]
[420202015,1775771447229,-554.53,0.00015999,2]
[420202017,1775771447247,-554.53,0.00015999,2]